[Event "Arisan Chess Ladies WGM 2019"]
[Site "Modra-Piesok"]
[Date "2019.09.17"]
[Round "4.1"]
[White "Dimitrijevic, Aleksandra"]
[Black "Trippold, Denise"]
[Result "1/2-1/2"]
[ECO "E11"]
[WhiteElo "2142"]
[BlackElo "2184"]
[Annotator "NA"]
[PlyCount "81"]
[EventDate "2019.09.14"]
[EventType "tourn"]
[EventCountry "SVK"]
[SourceTitle "playchess.com"]
[Source "ChessBase"]
[SourceQuality "1"]
[TimeControl "40/5400+30:1800+30"]

1. d4 {[%emt 0:00:23]} d5 {[%emt 0:00:00]} 2. c4 {[%emt 0:00:05]} e6 {[%emt 0:00:00]} 3. Nf3 {[%emt 0:00:04]} Nf6 {[%emt 0:00:10]} 4. g3 {[%emt 0:00:08]} Bb4+ {[%emt 0:00:57]} 5. Bd2 {[%emt 0:00:43]} Be7 {[%emt 0:00:43]} 6. Bg2 {[%emt 0:00:41]} c6 {[%emt 0:01:15]} 7. O-O {[%emt 0:00:31]} Nbd7 {[%emt 0:00:20]} 8. Nc3 {[%emt 0:07:15]} b6 {[%emt 0:11:48]} 9. Qc2 {[%emt 0:03:52]} Ba6 {[%emt 0:01:24]} 10. cxd5 {[%emt 0:01:30]} cxd5 {[%emt 0:01:23]} 11. Rfe1 {[%emt 0:00:12]} O-O {[%emt 0:00:47]} 12. Rac1 {[%emt 0:00:24]} Rc8 {[%emt 0:12:19]} 13. Qb1 {[%emt 0:03:17]} Bb7 {[%emt 0:03:31]} 14. Rc2 {[%emt 0:11:16]} a6 {[%emt 0:10:42]} 15. a4 {[%emt 0:00:56]} Nb8 {[%emt 0:01:07]} 16. Ne5 {[%emt 0:00:36]} Nc6 {[%emt 0:01:10]} 17. Nxc6 {[%emt 0:00:20]} Bxc6 {[%emt 0:06:18]} 18. b3 {[%emt 0:02:12]} Qd7 {[%emt 0:01:42]} 19. Na2 {[%emt 0:00:31]} Ne4 {[%emt 0:06:37]} 20. Bb4 {[%emt 0:00:42]} Nd6 {[%emt 0:10:25]} 21. Rec1 {[%emt 0:04:43]} a5 {[%emt 0:00:44]} 22. Ba3 {[%emt 0:00:50]} Bb7 {[%emt 0:00:30]} 23. Rxc8 {[%emt 0:00:57]} Rxc8 {[%emt 0:00:06]} 24. Rxc8+ {[%emt 0:00:04]} Qxc8 {[%emt 0:01:04]} 25. Qc1 {[%emt 0:00:08]} Qxc1+ {[%emt 0:05:40]} 26. Nxc1 {[%emt 0:00:07]} Nf5 {[%emt 0:00:55]} 27. Bxe7 {[%emt 0:00:15]} Nxe7 {[%emt 0:00:03]} 28. e3 {[%emt 0:00:18]} Ba6 {[%emt 0:00:49]} 29. Bf1 {[%emt 0:00:08]} Bxf1 {[%emt 0:03:03]} 30. Kxf1 {[%emt 0:00:05]} g5 {[%emt 0:02:55]} 31. h3 {[%emt 0:00:25]} h5 {[%emt 0:03:27]} 32. Nd3 {[%emt 0:00:13]} f6 {[%emt 0:01:23]} 33. Ke2 {[%emt 0:00:40]} Kf7 {[%emt 0:00:55]} 34. f3 {[%emt 0:02:16]} Nc6 {[%emt 0:00:38]} 35. f4 {[%emt 0:02:39]} g4 {[%emt 0:11:10]} 36. hxg4 {[%emt 0:00:07]} hxg4 {[%emt 0:00:03]} 37. Nf2 {[%emt 0:00:07]} f5 {[%emt 0:00:08]} 38. Nd3 {[%emt 0:00:05]} Ke7 {[%emt 0:00:19]} 39. Ne5 {[%emt 0:01:09]} Nb4 {[%emt 0:00:33]} 40. Kd2 {[%emt 0:00:40]} Kd6 {[%emt 0:02:04]} 41. Nd3 {[%emt 0:30:45] Ke5} 1/2-1/2

[Event "Arisan Chess Ladies WGM 2019"]
[Site "Modra-Piesok"]
[Date "2019.09.17"]
[Round "4.2"]
[White "Kantorik, Marian"]
[Black "Kanakova, Natalie"]
[Result "1/2-1/2"]
[ECO "B14"]
[WhiteElo "2150"]
[BlackElo "2201"]
[Annotator "NA"]
[PlyCount "45"]
[EventDate "2019.09.14"]
[EventType "tourn"]
[EventCountry "SVK"]
[SourceTitle "playchess.com"]
[Source "ChessBase"]
[SourceQuality "1"]
[TimeControl "40/5400+30:1800+30"]

1. c4 {[%emt 0:00:32]} c5 {[%emt 0:00:11]} 2. Nc3 {[%emt 0:00:24]} g6 {[%emt 0:01:22]} 3. Nf3 {[%emt 0:00:53]} Bg7 {[%emt 0:01:28]} 4. e3 {[%emt 0:00:30]} Nf6 {[%emt 0:01:23]} 5. d4 {[%emt 0:00:13]} cxd4 {[%emt 0:00:35]} 6. exd4 {[%emt 0:00:05]} d5 {[%emt 0:01:07]} 7. Qb3 {[%emt 0:09:23]} O-O {[%emt 0:11:57]} 8. cxd5 {[%emt 0:01:00]} Nbd7 {[%emt 0:00:11]} 9. Bg5 {[%emt 0:02:52]} Nb6 {[%emt 0:02:40]} 10. Bxf6 {[%emt 0:03:53]} Bxf6 {[%emt 0:00:33]} 11. Be2 {[%emt 0:00:07]} e6 {[%emt 0:07:40]} 12. dxe6 {[%emt 0:00:47]} Bxe6 {[%emt 0:00:05]} 13. Qd1 {[%emt 0:00:14]} Nd5 {[%emt 0:04:23]} 14. Nxd5 {[%emt 0:04:24]} Bxd5 {[%emt 0:00:57]} 15. O-O {[%emt 0:01:57]} Qb6 {[%emt 0:02:43]} 16. b3 {[%emt 0:02:29]} Qa5 {[%emt 0:12:39]} 17. Qe1 {[%emt 0:06:56]} Qa3 {[%emt 0:04:34]} 18. Qc1 {[%emt 0:02:29]} Qb4 {[%emt 0:06:26]} 19. Qe1 {[%emt 0:01:48]} Qa3 {[%emt 0:03:36]} 20. Qc1 {[%emt 0:05:48]} Qb4 {[%emt 0:01:17]} 21. Qe1 {[%emt 0:00:48]} Qa3 {[%emt 0:00:08]} 22. Qc1 {[%emt 0:00:09]} Qb4 {[%emt 0:00:05]} 23. Qe1 {[%emt 0:00:08]} 1/2-1/2

[Event "Arisan Chess Ladies WGM 2019"]
[Site "Modra-Piesok"]
[Date "2019.09.17"]
[Round "4.3"]
[White "Cibickova, Zuzana"]
[Black "Gvanceladze, Anna"]
[Result "0-1"]
[ECO "B12"]
[WhiteElo "2244"]
[BlackElo "2247"]
[Annotator "NA"]
[PlyCount "42"]
[EventDate "2019.09.14"]
[EventType "tourn"]
[EventCountry "SVK"]
[SourceTitle "playchess.com"]
[Source "ChessBase"]
[SourceQuality "1"]
[TimeControl "40/5400+30:1800+30"]

1. e4 {[%emt 0:00:00]} c6 {[%emt 0:00:00]} 2. d4 {[%emt 0:00:00]} d5 {[%emt 0:00:00]} 3. e5 {[%emt 0:00:00]} Bf5 {[%emt 0:00:06]} 4. Nf3 {[%emt 0:00:13]} e6 {[%emt 0:00:07]} 5. Be2 {[%emt 0:00:15]} c5 {[%emt 0:02:03]} 6. O-O {[%emt 0:04:34]} Nc6 {[%emt 0:00:43]} 7. c3 {[%emt 0:01:07]} Bg6 {[%emt 0:03:26]} 8. Be3 {[%emt 0:09:50]} cxd4 {[%emt 0:09:26]} 9. cxd4 {[%emt 0:00:17]} Nh6 {[%emt 0:00:18]} 10. Nc3 {[%emt 0:02:02]} Nf5 {[%emt 0:00:27]} 11. Qd2 {[%emt 0:00:30]} Be7 {[%emt 0:03:08]} 12. Bf4 {[%emt 0:06:30]} O-O {[%emt 0:03:02]} 13. Rac1 {[%emt 0:04:24]} Bh5 {[%emt 0:09:38]} 14. Ne1 {[%emt 0:29:53]} Bxe2 {[%emt 0:03:44]} 15. Nxe2 {[%emt 0:00:06]} f6 {[%emt 0:06:46]} 16. Nf3 {[%emt 0:05:28]} g5 {[%emt 0:04:45]} 17. exf6 {[%emt 0:01:05]} Bb4 {[%emt 0:00:19]} 18. Bc7 {[%emt 0:09:47]} Bxd2 {[%emt 0:00:28]} 19. Bxd8 {[%emt 0:00:06]} Bxc1 {[%emt 0:00:10]} 20. Be7 {[%emt 0:00:05]} Nfxe7 {[%emt 0:01:32]} 21. fxe7 {[%emt 0:00:07]} Rxf3 {[%emt 0:00:36]} 0-1

[Event "Arisan Chess Ladies WGM 2019"]
[Site "Modra-Piesok"]
[Date "2019.09.17"]
[Round "5.1"]
[White "Gvanceladze, Anna"]
[Black "Dimitrijevic, Aleksandra"]
[Result "1/2-1/2"]
[ECO "D52"]
[WhiteElo "2247"]
[BlackElo "2142"]
[Annotator "ChessBase"]
[PlyCount "111"]
[EventDate "2019.09.14"]
[EventType "tourn"]
[EventCountry "SVK"]
[SourceTitle "playchess.com"]
[Source "ChessBase"]
[SourceQuality "1"]
[TimeControl "40/5400+30:1800+30"]

1. d4 {[%emt 0:00:00]} d5 {[%emt 0:00:00]} 2. Nf3 {[%emt 0:00:00]} Nf6 {[%emt 0:00:16]} 3. c4 {[%emt 0:00:00]} c6 {[%emt 0:00:04]} 4. Nc3 {[%emt 0:00:00]} e6 {[%emt 0:00:05]} 5. Bg5 {[%emt 0:04:00]} Nbd7 {[%emt 0:01:40]} 6. e3 {[%emt 0:00:26]} h6 {[%emt 0:01:03]} 7. Bh4 {[%emt 0:01:20]} Bd6 {[%emt 0:01:51]} 8. cxd5 {[%emt 0:01:00]} exd5 {[%emt 0:01:03]} 9. Bd3 {[%emt 0:00:13]} O-O {[%emt 0:00:17]} 10. O-O {[%emt 0:00:56]} Re8 {[%emt 0:00:12]} 11. Rb1 {[%emt 0:02:34]} b6 {[%emt 0:02:37]} 12. b4 {[%emt 0:09:20]} Bb7 {[%emt 0:00:30]} 13. Qa4 {[%emt 0:03:16]} a5 {[%emt 0:04:23]} 14. bxa5 {[%emt 0:01:39]} Rxa5 {[%emt 0:00:06]} 15. Qc2 {[%emt 0:03:10]} Ba8 {[%emt 0:21:45]} 16. Bf5 {[%emt 0:07:09]} Qc7 {[%emt 0:06:07]} 17. Rfc1 {[%emt 0:05:48]} Qa7 {[%emt 0:01:03]} 18. a4 {[%emt 0:03:40]} Bb8 {[%emt 0:07:37]} 19. Nd2 {[%emt 0:10:21]} Qc7 {[%emt 0:02:04]} 20. Nf3 {[%emt 0:02:44]} Qa7 {[%emt 0:00:11]} 21. Qb3 {[%emt 0:00:28]} Bc7 {[%emt 0:01:04]} 22. Rc2 {[%emt 0:01:28]} Bd8 {[%emt 0:01:53]} 23. Nd2 {[%emt 0:04:14]} c5 {[%emt 0:05:52]} 24. Bg3 {[%emt 0:05:42]} Bc6 {[%emt 0:04:49]} 25. Ra2 {[%emt 0:02:59]} Nf8 {[%emt 0:03:50]} 26. Qd1 {[%emt 0:03:04]} Ne6 {[%emt 0:00:46]} 27. Nf3 {[%emt 0:02:16]} Nd7 {[%emt 0:03:15]} 28. Ne5 {[%emt 0:03:59]} Nxe5 {[%emt 0:01:52]} 29. Bxe5 {[%emt 0:00:02]} Nf8 {[%emt 0:00:59]} 30. Qg4 {[%emt 0:05:19]} g6 {[%emt 0:00:26]} 31. Bd6 {[%emt 0:04:19]} cxd4 {[%emt 0:01:36]} 32. exd4 {[%emt 0:00:07]} Bxa4 {[%emt 0:01:12]} 33. Bb4 {[%emt 0:06:42]} Bd1 {[%emt 0:00:24]} 34. Qxd1 {[%emt 0:02:06]} Rxa2 {[%emt 0:00:06]} 35. Nxa2 {[%emt 0:00:05]} Qxa2 {[%emt 0:00:05]} 36. Bd3 {[%emt 0:01:56]} Bf6 {[%emt 0:03:17]} 37. Bc3 {[%emt 0:00:45]} Qa7 {[%emt 0:00:24]} 38. Qb3 {[%emt 0:00:35]} Rc8 {[%emt 0:01:32]} 39. Ba1 {[%emt 0:02:05]} Ne6 {[%emt 0:04:48]} 40. Qxd5 {[%emt 0:03:10]} Qa3 {[%emt 0:02:17]} 41. Bf1 {[%emt 0:06:50]} Rd8 {[%emt 0:04:10]} 42. Qc6 {[%emt 0:02:40]} Bxd4 {[%emt 0:01:48]} 43. Bxd4 {[%emt 0:01:01]} Nxd4 {[%emt 0:01:14]} 44. Qxb6 {[%emt 0:02:40]} Qd6 {[%emt 0:00:09]} 45. Qa7 {[%emt 0:00:40]} Nc6 {[%emt 0:00:46]} 46. Qe3 {[%emt 0:00:55]} Kg7 {[%emt 0:00:11]} 47. h3 {[%emt 0:00:07]} Qd4 {[%emt 0:00:46]} 48. Qc1 {[%emt 0:00:38]} Rb8 {[%emt 0:02:32]} 49. Ra1 {[%emt 0:01:25]} Ne5 {[%emt 0:00:16]} 50. Ra2 {[%emt 0:00:55]} Rd8 {[%emt 0:01:06]} 51. Ra5 {[%emt 0:02:11]} Rd5 {[%emt 0:02:02]} 52. Ra8 {[%emt 0:00:43]} Rc5 {[%emt 0:01:16]} 53. Qb1 {[%emt 0:00:54]} Nd7 {[%emt 0:01:20]} 54. Rd8 {[%emt 0:01:29]} Rd5 {[%emt 0:00:28]} 55. Qa2 {[%emt 0:01:21]} Nf6 {[%emt 0:00:09]} 56. Rxd5 {[%emt 0:02:20]} 1/2-1/2

[Event "Arisan Chess Ladies WGM 2019"]
[Site "Modra-Piesok"]
[Date "2019.09.17"]
[Round "5.2"]
[White "Kanakova, Natalie"]
[Black "Cibickova, Zuzana"]
[Result "0-1"]
[ECO "C45"]
[WhiteElo "2201"]
[BlackElo "2244"]
[Annotator "ChessBase"]
[PlyCount "50"]
[EventDate "2019.09.14"]
[EventType "tourn"]
[EventCountry "SVK"]
[SourceTitle "playchess.com"]
[Source "ChessBase"]
[SourceQuality "1"]
[TimeControl "40/5400+30:1800+30"]

1. e4 {[%emt 0:00:00]} e5 {[%emt 0:00:00]} 2. Nf3 {[%emt 0:00:00]} Nc6 {[%emt 0:00:00]} 3. d4 {[%emt 0:00:00]} exd4 {[%emt 0:00:00]} 4. Nxd4 {[%emt 0:00:00]} Nf6 {[%emt 0:00:00]} 5. Nxc6 {[%emt 0:00:00]} bxc6 {[%emt 0:00:00]} 6. e5 {[%emt 0:00:09]} Qe7 {[%emt 0:00:00]} 7. Qe2 {[%emt 0:00:06]} Nd5 {[%emt 0:00:00]} 8. c4 {[%emt 0:00:11]} Nb6 {[%emt 0:00:25]} 9. Nd2 {[%emt 0:09:14]} Qe6 {[%emt 0:01:23]} 10. Qe4 {[%emt 0:07:35]} Bb4 {[%emt 0:03:23]} 11. a3 {[%emt 0:04:31]} d5 {[%emt 0:08:17]} 12. Qe3 {[%emt 0:05:59]} Be7 {[%emt 0:06:48]} 13. b3 {[%emt 0:06:17]} f6 {[%emt 0:06:47]} 14. Bb2 {[%emt 0:02:33]} fxe5 {[%emt 0:08:37]} 15. Qxe5 {[%emt 0:01:55]} O-O {[%emt 0:03:00]} 16. Qxe6+ {[%emt 0:09:50]} Bxe6 {[%emt 0:00:07]} 17. Be2 {[%emt 0:02:03]} Rad8 {[%emt 0:11:55]} 18. Rd1 {[%emt 0:06:44]} dxc4 {[%emt 0:07:00]} 19. bxc4 {[%emt 0:02:10]} Na4 {[%emt 0:05:13]} 20. Be5 {[%emt 0:02:40]} Bxa3 {[%emt 0:04:25]} 21. Bxc7 {[%emt 0:04:01]} Bb4 {[%emt 0:02:09]} 22. Be5 {[%emt 0:14:46]} Nc3 {[%emt 0:02:19]} 23. Bxc3 {[%emt 0:05:49]} Bxc3 {[%emt 0:00:05]} 24. Bf1 {[%emt 0:01:06]} Rxd2 {[%emt 0:01:15]} 25. Rxd2 {[%emt 0:00:07]} Rd8 {[%emt 0:00:07]} 0-1

[Event "Arisan Chess Ladies WGM 2019"]
[Site "Modra-Piesok"]
[Date "2019.09.17"]
[Round "5.3"]
[White "Trippold, Denise"]
[Black "Kantorik, Marian"]
[Result "1/2-1/2"]
[ECO "D80"]
[WhiteElo "2184"]
[BlackElo "2150"]
[Annotator "ChessBase"]
[PlyCount "84"]
[EventDate "2019.09.14"]
[EventType "tourn"]
[EventCountry "SVK"]
[SourceTitle "playchess.com"]
[Source "ChessBase"]
[SourceQuality "1"]
[TimeControl "40/5400+30:1800+30"]

1. d4 {[%emt 0:00:00]} Nf6 {[%emt 0:00:54]} 2. c4 {[%emt 0:00:00]} g6 {[%emt 0:00:06]} 3. Nc3 {[%emt 0:00:00]} d5 {[%emt 0:00:25]} 4. cxd5 {[%emt 0:01:59]} Nxd5 {[%emt 0:00:39]} 5. e4 {[%emt 0:01:45]} Nxc3 {[%emt 0:00:14]} 6. bxc3 {[%emt 0:00:02]} Bg7 {[%emt 0:01:08]} 7. Nf3 {[%emt 0:00:24]} c5 {[%emt 0:00:29]} 8. Be3 {[%emt 0:00:17]} Qa5 {[%emt 0:01:31]} 9. Qd2 {[%emt 0:00:09]} Nc6 {[%emt 0:01:06]} 10. Rc1 {[%emt 0:02:19]} cxd4 {[%emt 0:00:09]} 11. cxd4 {[%emt 0:00:13]} Qxd2+ {[%emt 0:00:09]} 12. Kxd2 {[%emt 0:00:05]} O-O {[%emt 0:00:08]} 13. d5 {[%emt 0:02:32]} Rd8 {[%emt 0:00:10]} 14. Kc2 {[%emt 0:00:57]} Na5 {[%emt 0:00:52]} 15. Bg5 {[%emt 0:00:54]} Kf8 {[%emt 0:05:40]} 16. Bd2 {[%emt 0:07:21]} b6 {[%emt 0:00:28]} 17. Bxa5 {[%emt 0:00:13]} bxa5 {[%emt 0:00:05]} 18. Bc4 {[%emt 0:02:03]} Bd7 {[%emt 0:02:21]} 19. e5 {[%emt 0:31:29]} Bf5+ {[%emt 0:01:41]} 20. Kb3 {[%emt 0:02:06]} Be4 {[%emt 0:15:36]} 21. Rhe1 {[%emt 0:08:34]} Bxd5 {[%emt 0:11:59]} 22. Bxd5 {[%emt 0:00:05]} Rxd5 {[%emt 0:00:12]} 23. Rc7 {[%emt 0:01:22]} Rb5+ {[%emt 0:05:01]} 24. Ka3 {[%emt 0:19:01]} a6 {[%emt 0:03:15]} 25. Rc6 {[%emt 0:03:18]} e6 {[%emt 0:04:42]} 26. Re2 {[%emt 0:01:24]} Ke8 {[%emt 0:07:24]} 27. Ka4 {[%emt 0:00:43]} h6 {[%emt 0:00:57]} 28. Rxa6 {[%emt 0:03:00]} Rab8 {[%emt 0:00:04]} 29. Ra8 {[%emt 0:03:38]} Rxa8 {[%emt 0:07:54]} 30. Kxb5 {[%emt 0:00:02]} a4 {[%emt 0:00:09]} 31. a3 {[%emt 0:08:12]} Bf8 {[%emt 0:01:21]} 32. Re3 {[%emt 0:00:01]} Be7 {[%emt 0:03:10]} 33. Nd2 {[%emt 0:01:41]} Rb8+ {[%emt 0:05:15]} 34. Kxa4 {[%emt 0:00:03]} Ra8+ {[%emt 0:00:05]} 35. Kb5 {[%emt 0:00:09]} Bxa3 {[%emt 0:01:08]} 36. Ne4 {[%emt 0:00:26]} Be7 {[%emt 0:00:27]} 37. Re2 {[%emt 0:01:04]} g5 {[%emt 0:00:57]} 38. f3 {[%emt 0:00:55]} Rb8+ {[%emt 0:01:49]} 39. Kc6 {[%emt 0:00:02]} Rc8+ {[%emt 0:00:09]} 40. Kb5 {[%emt 0:00:34]} Rb8+ {[%emt 0:01:55]} 41. Kc6 {[%emt 0:01:27]} Rc8+ {[%emt 0:03:43]} 42. Kb5 {[%emt 0:00:59]} Rb8+ {[%emt 0:08:05]} 1/2-1/2

[Event "Arisan Chess Ladies WGM 2019"]
[Site "Modra-Piesok"]
[Date "2019.09.18"]
[Round "6.2"]
[White "Trippold, Denise"]
[Black "Cibickova, Zuzana"]
[Result "0-1"]
[ECO "D78"]
[WhiteElo "2184"]
[BlackElo "2244"]
[Annotator "NA"]
[PlyCount "94"]
[EventDate "2019.09.14"]
[EventType "tourn"]
[EventCountry "SVK"]
[SourceTitle "playchess.com"]
[Source "ChessBase"]
[SourceQuality "1"]
[TimeControl "40/5400+30:1800+30"]

1. d4 {[%emt 0:00:00]} d5 {[%emt 0:00:00]} 2. c4 {[%emt 0:00:00]} c6 {[%emt 0:00:00]} 3. Nf3 {[%emt 0:00:00]} Nf6 {[%emt 0:00:00]} 4. Nc3 {[%emt 0:00:11]} dxc4 {[%emt 0:01:25]} 5. g3 {[%emt 0:00:19]} g6 {[%emt 0:19:48]} 6. Bg2 {[%emt 0:00:37]} Bg7 {[%emt 0:00:03]} 7. O-O {[%emt 0:00:22]} O-O {[%emt 0:00:03]} 8. a4 {[%emt 0:00:28]} Na6 {[%emt 0:16:54]} 9. a5 {[%emt 0:01:26]} Nd7 {[%emt 0:14:34]} 10. Be3 {[%emt 0:27:45]} Nf6 {[%emt 0:13:21]} 11. Qa4 {[%emt 0:07:39]} Be6 {[%emt 0:01:57]} 12. Ng5 {[%emt 0:16:37]} Bd5 {[%emt 0:00:35]} 13. f3 {[%emt 0:00:55]} b5 {[%emt 0:03:39]} 14. Qd1 {[%emt 0:02:11]} Nd7 {[%emt 0:06:11]} 15. Nh3 {[%emt 0:11:35]} Nc7 {[%emt 0:03:50]} 16. Bf2 {[%emt 0:00:51]} f6 {[%emt 0:03:03]} 17. e4 {[%emt 0:01:05]} Bf7 {[%emt 0:00:02]} 18. Qe2 {[%emt 0:02:02]} Qb8 {[%emt 0:04:39]} 19. Rfd1 {[%emt 0:01:29]} Qb7 {[%emt 0:04:01]} 20. f4 {[%emt 0:00:41]} e6 {[%emt 0:00:18]} 21. Be3 {[%emt 0:09:57]} Kh8 {[%emt 0:01:46]} 22. Nf2 {[%emt 0:00:05]} Rad8 {[%emt 0:00:21]} 23. h4 {[%emt 0:01:43]} Rfe8 {[%emt 0:01:05]} 24. Bf3 {[%emt 0:00:14]} Nf8 {[%emt 0:02:37]} 25. Kh2 {[%emt 0:01:14]} e5 {[%emt 0:00:43]} 26. dxe5 {[%emt 0:11:55]} fxe5 {[%emt 0:00:01]} 27. f5 {[%emt 0:00:06]} Rxd1 {[%emt 0:00:07]} 28. Rxd1 {[%emt 0:00:04]} b4 {[%emt 0:00:10]} 29. Na4 {[%emt 0:00:38]} Nb5 {[%emt 0:00:40]} 30. Nc5 {[%emt 0:00:33]} Qe7 {[%emt 0:00:11]} 31. Ne6 {[%emt 0:02:03]} Nxe6 {[%emt 0:00:30]} 32. fxe6 {[%emt 0:00:01]} Bxe6 {[%emt 0:00:17]} 33. Bg5 {[%emt 0:00:31]} Qf7 {[%emt 0:00:05]} 34. Qe3 {[%emt 0:00:32]} Nd4 {[%emt 0:00:31]} 35. Bg2 {[%emt 0:00:01]} Rf8 {[%emt 0:00:33]} 36. Rf1 {[%emt 0:01:11]} Nf3+ {[%emt 0:00:53]} 37. Kh1 {[%emt 0:00:01]} Nxg5 {[%emt 0:00:21]} 38. hxg5 {[%emt 0:01:11]} Qe7 {[%emt 0:01:42]} 39. Rc1 {[%emt 0:00:05]} Rd8 {[%emt 0:00:34]} 40. Bf1 {[%emt 0:00:28]} Rd4 {[%emt 0:00:56]} 41. Be2 {[%emt 0:07:56]} Qd8 {[%emt 0:02:25]} 42. Ng4 {[%emt 0:06:29]} Rxe4 {[%emt 0:09:04]} 43. Qxe4 {[%emt 0:00:18]} Bd5 {[%emt 0:00:04]} 44. Rxc4 {[%emt 0:00:09]} Bxe4+ {[%emt 0:00:59]} 45. Rxe4 {[%emt 0:00:06]} Qxg5 {[%emt 0:02:19]} 46. Rxb4 {[%emt 0:05:24]} h5 {[%emt 0:00:37]} 47. Nf2 {[%emt 0:00:43]} Qe3 {[%emt 0:00:19]} 0-1